Cogmind - Beta 12 X4 @@@ ROGUE MODE // 2022.10.21 @ 18:56:34 Player: albenzo Result: Destroyed by Z1-KR0(z) with Zionite Laser-S Performance ------------- Evolutions (3) 1500 Regions Visited (12) 2400 Robots Destroyed (145) 725 Value Destroyed (3682) 3682 Prototype IDs (5) 100 Alien Tech Used (0) 0 Bonus (758) 758 TOTAL SCORE: 9165 Bonus ------- High Alert Combat Kills 54 Follower Combat Kills 118 Met Imprinter 300 Was Imprinted 300 Friendly Fire -14 Cogmind --------- Core Integrity 0/700 Matter 300/300 Energy 100/100 System Corruption 0% Temperature Cool (9) Movement Core (50) Location -7/Deep Caves Parts ------- > --- POWER (1) -------- (None) > --- PROPULSION (4) --- (None) > --- UTILITY (6) ------ Improved Signal Interpreter Hacking Suite Hacking Suite > --- WEAPON (2) ------- CR-A16's Pointy Stick > --- INVENTORY (5) ---- Light Nuclear Core Layered Light Armor Plating RU-N14's Throwing Claymores RU-N14's Throwing Claymores Chainsword Peak State ------------ > --- POWER ------------ Heavy Ion Engine > --- PROPULSION ------- Armored Treads Advanced Treads Advanced Treads Advanced Treads > --- UTILITY ---------- Huge Storage Unit Hardened Medium Armor Plating Hardened Medium Armor Plating Improved Shield Generator High-powered Tractor Beam > --- WEAPON ----------- Gauss Rifle Gauss Rifle > --- INVENTORY -------- Light Nuclear Core Light Nuclear Core Armored Treads Advanced Treads VTOL Module VTOL Module VTOL Module Cesium-ion Thruster Medium Storage Unit Structural Scanner Improved Sensor Array Improved Signal Interpreter Reaction Control System Improved Light Armor Plating Hacking Suite Hacking Suite Hacking Suite Minigun Minigun Improved Light Cannon Improved Light Cannon Missile Launcher Improved Datajack Katana Makeshift Spear [Rating: 42] Favorites ----------- Power Heavy Ion Engine Engine Heavy Ion Engine Power Core Light Nuclear Core Propulsion Light Treads Treads Light Treads Wheel Wheel Flight Unit VTOL Module Utility Huge Storage Unit Device Seismic Detector Storage Huge Storage Unit Processor Improved Targeting Computer Hackware Hacking Suite Protection Hardened Medium Armor Plating Weapon Minigun Ballistic Gun Minigun Launcher Missile Launcher Slashing Weapon Chainsword Piercing Weapon Makeshift Spear Special Melee Weapon Improved Datajack Build | -11 -10 -10 -9 -9 -9 -8 -8 -7 -7 -7 -7 -7 ------- Run | Scr Mat Min Mat Min Exi Min Mat Fac Low Low Zio Dee Slots Evolved 6 | . . . 2 . . . 2 2 . . . . Power . | . . . . . . . . . . . . . Propulsion 2 | . . . 2 . . . . . . . . . Utility 4 | . . . . . . . 2 2 . . . . Weapon . | . . . . . . . . . . . . . Parts Attached 118 | 8 13 3 25 2 1 2 39 22 . . 1 2 Power 13 | 1 5 . 3 . . 1 2 1 . . . . Engine 12 | 1 5 . 3 . . 1 2 . . . . . Core 1 | . . . . . . . . 1 . . . . Reactor . | . . . . . . . . . . . . . Propulsion 40 | 2 2 . 11 2 . . 16 7 . . . . Treads 26 | 2 2 . 11 2 . . 9 . . . . . Leg . | . . . . . . . . . . . . . Wheel 7 | . . . . . . . 7 . . . . . Hover . | . . . . . . . . . . . . . Flight 7 | . . . . . . . . 7 . . . . Utility 33 | 3 3 . 5 . 1 . 12 9 . . . . Device 12 | 2 . . . . . . 7 3 . . . . Storage 7 | 1 3 . 1 . . . . 2 . . . . Processor 4 | . . . 1 . 1 . . 2 . . . . Hackware 2 | . . . . . . . . 2 . . . . Protection 8 | . . . 3 . . . 5 . . . . . Artifact . | . . . . . . . . . . . . . Weapon 32 | 2 3 3 6 . . 1 9 5 . . 1 2 Energy Gun . | . . . . . . . . . . . . . Energy Cannon . | . . . . . . . . . . . . . Ballistic Gun 22 | 2 3 3 6 . . 1 7 . . . . . Ballistic Cannon . | . . . . . . . . . . . . . Launcher 2 | . . . . . . . 2 . . . . . Special Weapon . | . . . . . . . . . . . . . Impact Weapon . | . . . . . . . . . . . . . Slashing Weapon 3 | . . . . . . . . 3 . . . . Piercing Weapon 2 | . . . . . . . . 1 . . 1 . Special Melee Weapon 3 | . . . . . . . . 1 . . . 2 Unidentified Prototypes 2 | . . . 1 . . . . 1 . . . . Parts Lost 22 | . 1 . 3 1 . . 9 1 . . . 7 Power 1 | . . . . . . . . . . . . 1 Propulsion 12 | . . . 1 1 . . 5 1 . . . 4 Utility 6 | . . . 1 . . . 3 . . . . 2 Weapon 3 | . 1 . 1 . . . 1 . . . . . Highest Loss Streak 7 | . 1 . 2 1 . . 3 1 . . . 7 To Critical Strikes . | . . . . . . . . . . . . . Average Slot Usage (%) 99 | . 99 100 99 100 99 100 98 88 100 100 100 91 Engine 10 | . 14 14 11 11 11 11 9 1 . . . . Treads 32 | . 28 28 44 44 44 44 27 6 . . . . Wheel 1 | . . . . . . . 8 . . . . . Flight 2 | . . . . . . . . 22 30 30 30 26 Device 6 | . 14 14 . . . . 8 14 15 15 15 13 Storage 10 | . 14 14 11 11 11 11 9 5 7 7 7 6 Processor 5 | . . . 7 11 10 11 3 7 7 7 7 7 Hackware 1 | . . . . . . . . 11 15 15 15 15 Protection 3 | . . . 2 . . . 14 3 . . . . Ballistic Gun 20 | . 27 28 21 22 22 22 17 3 . . . . Naked Turns . | . . . . . . . . . . . . . Heaviest Build 117 | 11 88 49 101 94 94 95 113 117 15 15 16 16 Greatest Support 88 | 40 40 40 80 80 80 80 88 86 19 19 19 19 Greatest Overweight (x) 10 | 1 2 1 1 1 1 1 10 1 . . . . Average Overweight (x) . | . . 1 . 1 1 1 1 . . . . . Largest Inventory Capacity 25 | 8 25 20 25 25 25 25 25 25 8 8 8 8 Average Capacity 21 | 7 18 20 24 25 25 25 25 12 8 8 8 7 Most Carried 25 | 8 20 20 25 25 25 25 25 25 8 8 8 8 Average Carried 21 | 5 15 19 24 24 25 24 24 11 8 8 7 7 Final Capacity 25 | 8 20 20 25 25 25 25 25 8 8 8 8 5 Final Carried 25 | 8 20 19 24 25 25 25 25 8 8 8 8 5 Class Distribution -------------------- 58% | Mutant 31% | Scavenger-Mutant 7% | Scavenger-Scout Dominant Class ---------------- Mutant | -10/Materials Scavenger-Mutant | -10/Mines Scavenger-Mutant | -9/Materials Mutant | -9/Mines Mutant | -9/Exiles Mutant | -8/Mines Mutant | -8/Materials Hacker-Scout | -7/Factory Scavenger-Scout | -7/Lower Caves Scavenger-Scout | -7/Lower Caves Scavenger-Scout | -7/Zion Scavenger-Scout | -7/Deep Caves Resources | -11 -10 -10 -9 -9 -9 -8 -8 -7 -7 -7 -7 -7 ----------- Run | Scr Mat Min Mat Min Exi Min Mat Fac Low Low Zio Dee Matter Collected 4012 | 289 474 88 954 225 . 86 1621 63 144 38 10 20 Remotely 808 | . . . . . . . 808 . . . . . Salvage Created 5630 | 86 721 70 1736 391 . 115 2343 63 48 . . 57 Parts 385 | 9 36 11 116 28 . 6 166 1 1 . . 11 Haulers Intercepted 13 | . 1 . 6 . . . 6 . . . . . Recyclers Shooed 3 | 1 1 . 1 . . . . . . . . . Parts Field Recycled . | . . . . . . . . . . . . . Retrieved Matter . | . . . . . . . . . . . . . Parts Self-Destructed . | . . . . . . . . . . . . . Prevented . | . . . . . . . . . . . . . Kills | -11 -10 -10 -9 -9 -9 -8 -8 -7 -7 -7 -7 -7 ------- Run | Scr Mat Min Mat Min Exi Min Mat Fac Low Low Zio Dee Combat Hostiles Destroyed 105 | . 13 3 36 15 . 4 34 . . . . . Guns 99 | . 12 3 36 15 . 4 29 . . . . . AOE 6 | . 1 . . . . . 5 . . . . . Classes Destroyed 13 | 2 5 1 2 2 . . 1 . . . . . Worker 6 | . 1 . . . . . 5 . . . . . Builder 2 | . . 1 1 . . . . . . . . . Tunneler 3 | 2 . . . . . . 1 . . . . . Hauler 13 | . 1 . 6 . . . 6 . . . . . Recycler 6 | 1 2 . 1 . . . 1 1 . . . . Operator 2 | . . . 1 . . . 1 . . . . . Watcher 8 | . 1 . 2 . . . 5 . . . . . Swarmer 36 | . 2 3 13 9 . 3 6 . . . . . Grunt 46 | . 11 . 14 4 . 1 16 . . . . . Brawler 1 | . . . . 1 . . . . . . . . Duelist 1 | . . . . 1 . . . . . . . . Sentry 18 | . . . 9 . . . 9 . . . . . Hunter 3 | . . . . . . . 3 . . . . . Z-Technician 4 | . . . . . . . . . . . . 4 Decomposer 2 | . . . . . . . . . 2 . . . Best Kill Streak 5 | 1 2 3 5 5 . 2 4 1 . . . 4 Combat Bots Only 5 | . 2 3 5 5 . 2 3 . . . . . Max Kills in Single Turn 3 | 1 1 1 1 1 . 1 3 1 1 . . 1 Gunslinging . | . . . . . . . . . . . . . Exploded 3 | . 1 . . . . . 3 . . . . . Melee . | . . . . . . . . . . . . . Uniques/NPCs Destroyed . | . . . . . . . . . . . . . Combat | -11 -10 -10 -9 -9 -9 -8 -8 -7 -7 -7 -7 -7 -------- Run | Scr Mat Min Mat Min Exi Min Mat Fac Low Low Zio Dee Damage Taken 6286 | . 725 82 1455 330 . 119 2398 113 . . . 1064 Core 1224 | . 107 21 149 28 . 15 188 24 . . . 692 Absorbed by Shields 248 | . . . . . . . 248 . . . . . Redirected to Shielding 6 | . . . 6 . . . . . . . . . Regen/Repaired (Parts) 454 | . . . 235 . . . 219 . . . . . Core Remaining (%) 66 | 100 . 48 . . . 52 65 . . . . . Volleys Fired 409 | 12 78 8 122 25 . 7 157 . . . . . Largest 2 | 2 2 2 2 2 . 2 2 . . . . . Hottest 56 | 40 40 40 50 50 . 50 56 . . . . . Shots Fired 813 | 24 156 16 243 50 . 14 310 . . . . . Gun 809 | 24 156 16 243 50 . 14 306 . . . . . Cannon . | . . . . . . . . . . . . . Launcher 4 | . . . . . . . 4 . . . . . Special . | . . . . . . . . . . . . . Kinetic 809 | 24 156 16 243 50 . 14 306 . . . . . Thermal . | . . . . . . . . . . . . . Explosive 4 | . . . . . . . 4 . . . . . Electromagnetic . | . . . . . . . . . . . . . Robot Hit Streak 22 | 3 14 6 15 22 . 3 10 . . . . . Robot Miss Streak 8 | 2 4 2 6 2 . 3 8 . . . . . Penetration Max 1 | . . . . . . . 1 . . . . . Secondary Targets 13 | . . . 6 2 . 1 4 . . . . . Max Gunslinging Chain 1 | . . . 1 1 . 1 1 . . . . . Shots Hit Robots 530 | 13 107 9 164 33 . 7 187 2 2 . . 6 Core Hits 231 | 6 36 4 72 17 . 4 84 1 1 . . 6 Critical Kills 4 | . . . . . . . 4 . . . . . Critical Parts Destroyed 4 | . 1 . 1 . . . 2 . . . . . Critical Strikes 9 | . 1 . 1 . . . 6 . . . . 1 Destroy 8 | . 1 . 1 . . . 6 . . . . . Impale 1 | . . . . . . . . . . . . 1 Melee Attacks 23 | . . . . . . . . 8 2 . 1 12 Impact . | . . . . . . . . . . . . . Slashing 2 | . . . . . . . . 2 . . . . Piercing 21 | . . . . . . . . 6 2 . 1 12 Sneak Attacks 7 | . . . . . . . . 1 2 . . 4 Combat Hostiles . | . . . . . . . . . . . . . Follow-up Attacks . | . . . . . . . . . . . . . Damage Inflicted 9249 | 82 1359 106 2386 567 . 118 4013 119 134 . . 365 Guns 7869 | 82 1207 106 2386 567 . 118 3403 . . . . . Cannons . | . . . . . . . . . . . . . Explosions 762 | . 152 . . . . . 610 . . . . . Melee 618 | . . . . . . . . 119 134 . . 365 Ramming . | . . . . . . . . . . . . . Kinetic 7869 | 82 1207 106 2386 567 . 118 3403 . . . . . Thermal 22 | . 22 . . . . . . . . . . . Explosive 717 | . 107 . . . . . 610 . . . . . Electromagnetic 23 | . 23 . . . . . . . . . . . Impact . | . . . . . . . . . . . . . Slashing . | . . . . . . . . . . . . . Piercing 618 | . . . . . . . . 119 134 . . 365 Highest Corruption 3 | . . . . . . . 1 3 3 3 3 . Average Corruption 2 | . . . . . . . 1 2 3 3 3 . Corruption Purged 1 | . . . . . . . 1 . . . . . Corruption Blocked . | . . . . . . . . . . . . . Effects 15 | . . . . . . . 1 2 1 11 . . Message Errors 3 | . . . . . . . . . . 3 . . Matter Fused 4 | . . . . . . . . 1 . 3 . . Heat Flow Errors 1 | . . . . . . . . . . 1 . . Energy Discharges 1 | . . . . . . . 1 . . . . . Data Loss (minor) 2 | . . . . . . . . . . 2 . . Data Loss (major) 4 | . . . . . . . . 1 1 2 . . Overload Shots . | . . . . . . . . . . . . . Overflow Damage 113 | . 32 . . . . . 17 . 64 . . . Projectiles . | . . . . . . . . . . . . . Explosions 49 | . 32 . . . . . 17 . . . . . Melee 64 | . . . . . . . . . 64 . . . Knockbacks . | . . . . . . . . . . . . . Impact . | . . . . . . . . . . . . . Kinetic . | . . . . . . . . . . . . . Secondary . | . . . . . . . . . . . . . Self-Inflicted Damage 244 | . 109 . . . . . 135 . . . . . Shots 5 | . 1 . . . . . 4 . . . . . Rammed . | . . . . . . . . . . . . . Targets Rammed . | . . . . . . . . . . . . . Kicked . | . . . . . . . . . . . . . Crushed . | . . . . . . . . . . . . . Highest Temperature 289 | . 18 . 39 24 . . 162 . . 289 . 12 Average Temperature 26 | . 8 . 9 11 . . 31 . . 269 . 12 Received Heat Transfer 2047 | . 336 . 474 54 . . 886 . . . . 297 Effects 1 | . . . . . . . . . . 1 . . Energy Bleed 1 | . . . . . . . . . . 1 . . Siege Activations . | . . . . . . . . . . . . . Robots Corrupted 1 | . 1 . . . . . . . . . . . Combat Hostiles . | . . . . . . . . . . . . . Parts Fried 1 | . 1 . . . . . . . . . . . Impact Corruptions . | . . . . . . . . . . . . . Robots Melted . | . . . . . . . . . . . . . Combat Hostiles . | . . . . . . . . . . . . . Parts Melted 1 | . . . . . . . 1 . . . . . Heat Transferred 50 | . 50 . . . . . . . . . . . Parts Sabotaged . | . . . . . . . . . . . . . Parts Stolen . | . . . . . . . . . . . . . Parts Stripped . | . . . . . . . . . . . . . Power Chain Reactions 2 | . 2 . . . . . . . . . . . Missiles Intercepted . | . . . . . . . . . . . . . Alert | -11 -10 -10 -9 -9 -9 -8 -8 -7 -7 -7 -7 -7 ------- Run | Scr Mat Min Mat Min Exi Min Mat Fac Low Low Zio Dee Peak Influence 594 | 15 220 122 594 472 . 266 303 143 . . . . Initial 213 | . 9 52 . 213 . . . 130 . . . . Average 153 | 7 109 30 269 247 . 41 139 130 . . . . Maximum Alert Level 2 | . 1 . 2 2 . 1 1 . . . . . Low Security (%) 66 | 100 79 100 40 28 . 98 68 100 . . . . Level 1 27 | . 20 . 40 59 . 1 31 . . . . . Level 2 5 | . . . 18 11 . . . . . . . . Level 3 . | . . . . . . . . . . . . . Level 4 . | . . . . . . . . . . . . . Level 5 . | . . . . . . . . . . . . . High Security . | . . . . . . . . . . . . . Max Security . | . . . . . . . . . . . . . Squads Dispatched 22 | . 5 . 7 . . . 7 3 . . . . Investigation 7 | . 1 . 2 . . . 1 3 . . . . Extermination . | . . . . . . . . . . . . . Reinforcement 11 | . 4 . 4 . . . 3 . . . . . Assault 1 | . . . 1 . . . . . . . . . Garrison 3 | . . . . . . . 3 . . . . . Intercept . | . . . . . . . . . . . . . Searches Triggered . | . . . . . . . . . . . . . Construction Impeded . | . . . . . . . . . . . . . Haulers Reinforced . | . . . . . . . . . . . . . Active Scanning Responses . | . . . . . . . . . . . . . Cargo Convoy Interrupts . | . . . . . . . . . . . . . Stealth | -11 -10 -10 -9 -9 -9 -8 -8 -7 -7 -7 -7 -7 --------- Run | Scr Mat Min Mat Min Exi Min Mat Fac Low Low Zio Dee Distress Signals 13 | . 6 . 3 . . . 4 . . . . . Communications Jammed . | . . . . . . . . . . . . . Distress Signals . | . . . . . . . . . . . . . Times Spotted 173 | . 28 3 58 17 . 9 49 . . 6 . 3 Peak Tracking Total 6 | . 5 3 6 4 . 3 3 . . 5 . 3 Tactical Retreats 10 | . 2 . 4 1 . 1 . . . 2 . . Traps | -11 -10 -10 -9 -9 -9 -8 -8 -7 -7 -7 -7 -7 ------- Run | Scr Mat Min Mat Min Exi Min Mat Fac Low Low Zio Dee Traps Triggered 8 | . 1 . 2 . . . 3 2 . . . . Indirectly . | . . . . . . . . . . . . . Trap Hack Attempts . | . . . . . . . . . . . . . Triggered . | . . . . . . . . . . . . . Disarmed . | . . . . . . . . . . . . . Reprogrammed . | . . . . . . . . . . . . . Reused . | . . . . . . . . . . . . . Traps Extracted . | . . . . . . . . . . . . . Installed 5 | . . 5 . . . . . . . . . . Triggered 1 | . . . . . . . . . . 1 . . Machines | -11 -10 -10 -9 -9 -9 -8 -8 -7 -7 -7 -7 -7 ---------- Run | Scr Mat Min Mat Min Exi Min Mat Fac Low Low Zio Dee Machines Disabled 13 | . 5 . 1 1 . . 6 . . . . . Max in Single Turn 3 | . 3 . 1 1 . . 1 . . . . . Machines Sabotaged . | . . . . . . . . . . . . . Overloaded Fab Kills . | . . . . . . . . . . . . . Hacking | -11 -10 -10 -9 -9 -9 -8 -8 -7 -7 -7 -7 -7 --------- Run | Scr Mat Min Mat Min Exi Min Mat Fac Low Low Zio Dee Machines Accessed 34 | . 3 . 7 . 4 . 12 7 . 1 . . Terminals 19 | . 2 . 4 . . . 8 5 . . . . Fabricators 2 | . . . . . . . . 2 . . . . Repair Stations 4 | . 1 . 2 . . . 1 . . . . . Recycling Units 1 | . . . . . . . 1 . . . . . Scanalyzers 2 | . . . 1 . . . 1 . . . . . Garrison Access 1 | . . . . . . . 1 . . . . . Total Hacks 144 | . 10 . 29 . 49 . 36 19 . 1 . . Successful 101 | . 6 . 21 . 49 . 16 8 . 1 . . Failed 43 | . 4 . 8 . . . 20 11 . . . . Catastrophic 7 | . . . . . . . 4 3 . . . . Database Lockouts . | . . . . . . . . . . . . . Manual 43 | . 2 . 6 . 1 . 20 10 . . 4 . Terminals 57 | . 7 . 12 . . . 24 14 . . . . Fabricators 5 | . . . . . . . . 5 . . . . Repair Stations 15 | . 3 . 8 . . . 4 . . . . . Recycling Units 3 | . . . . . . . 3 . . . . . Scanalyzers 12 | . . . 9 . . . 3 . . . . . Garrison Access 2 | . . . . . . . 2 . . . . . Terminal Hacks 74 | . 5 . 6 . 49 . 8 5 . 1 . . Record 49 | . . . . . 49 . . . . . . . Prototype ID Bank 2 | . 2 . . . . . . . . . . . Open Door 1 | . . . . . . . . . . 1 . . Level Access Points 1 | . . . . . . . . 1 . . . . Branch Access Points 2 | . 1 . 1 . . . . . . . . . Terminal Index 4 | . 1 . 1 . . . 1 1 . . . . Scanalyzer Index 1 | . . . . . . . 1 . . . . . Alert Level 2 | . . . . . . . 1 1 . . . . Unreport Threat 2 | . . . . . . . 2 . . . . . Locate Traps 3 | . . . 1 . . . 2 . . . . . Patrol Status 1 | . 1 . . . . . . . . . . . Transport Status 1 | . . . 1 . . . . . . . . . Recall Investigation 2 | . . . . . . . . 2 . . . . Hauler Manifests 3 | . . . 2 . . . 1 . . . . . Fabricator Hacks 3 | . . . . . . . . 3 . . . . Load Schematic 2 | . . . . . . . . 2 . . . . Build 1 | . . . . . . . . 1 . . . . Repair Station Hacks 11 | . 1 . 6 . . . 4 . . . . . Scan Component 6 | . 1 . 3 . . . 2 . . . . . Repair 5 | . . . 3 . . . 2 . . . . . Recycling Unit Hacks . | . . . . . . . . . . . . . Scanalyzer 12 | . . . 9 . . . 3 . . . . . Insert Component 5 | . . . 4 . . . 1 . . . . . Analyze 7 | . . . 5 . . . 2 . . . . . Garrison Access Hacks . | . . . . . . . . . . . . . Unauthorized Hacks 1 | . . . . . . . 1 . . . . . Terminals . | . . . . . . . . . . . . . Fabricators . | . . . . . . . . . . . . . Repair Stations . | . . . . . . . . . . . . . Recycling Units 1 | . . . . . . . 1 . . . . . Reject 1 | . . . . . . . 1 . . . . . Scanalyzers . | . . . . . . . . . . . . . Garrison Access . | . . . . . . . . . . . . . Data Cores Recovered . | . . . . . . . . . . . . . Used . | . . . . . . . . . . . . . Hacking Detections 27 | . 3 . 6 . . . 11 7 . . . . Full Trace Events 4 | . . . . . . . 1 3 . . . . Feedback Events . | . . . . . . . . . . . . . Feedback Blocked . | . . . . . . . . . . . . . Robot Schematics Acquired 4 | . . . . . . . . . . . 4 . Robots Built . | . . . . . . . . . . . . . Authchips . | . . . . . . . . . . . . . Time . | . . . . . . . . . . . . . Total Robot Build Rating . | . . . . . . . . . . . . . Part Schematics Acquired 20 | . . . 4 . . . 1 . . . 15 . Parts Built 2 | . . . . . . . . 2 . . . . Authchips . | . . . . . . . . . . . . . Time 62 | . . . . . . . . 62 . . . . Total Part Build Rating 4 | . . . . . . . . 4 . . . . Parts Repaired 5 | . . . 3 . . . 2 . . . . . Time 184 | . . . 102 . . . 82 . . . . . Parts Recycled . | . . . . . . . . . . . . . Recycled Matter . | . . . . . . . . . . . . . Retrieved Matter . | . . . . . . . . . . . . . Retrieved Components . | . . . . . . . . . . . . . Parts Scanalyzed 5 | . . . 4 . . . 1 . . . . . Part Schematics Acquired 5 | . . . 4 . . . 1 . . . . . Parts Damaged . | . . . . . . . . . . . . . Bothacking | -11 -10 -10 -9 -9 -9 -8 -8 -7 -7 -7 -7 -7 ------------ Run | Scr Mat Min Mat Min Exi Min Mat Fac Low Low Zio Dee Used RIF Installer . | . . . . . . . . . . . . . Robots Hacked . | . . . . . . . . . . . . . Non-combat . | . . . . . . . . . . . . . Combat . | . . . . . . . . . . . . . Robot Hacks Applied . | . . . . . . . . . . . . . Relay Couplers Released . | . . . . . . . . . . . . . Fabnet Peak Effective % . | . . . . . . . . . . . . . Robots Rewired 3 | . . . . . 3 . . . . . . . Allies Hacked . | . . . . . . . . . . . . . Hacks Repelled . | . . . . . . . . . . . . . Allies | -11 -10 -10 -9 -9 -9 -8 -8 -7 -7 -7 -7 -7 -------- Run | Scr Mat Min Mat Min Exi Min Mat Fac Low Low Zio Dee Total Allies 12 | . . . . 1 3 . . . . . 8 . Largest Group 8 | . . . . 1 3 3 . . . . 8 5 Highest-Rated Group 285 | . . . . 31 37 37 . . . . 285 170 Highest-Rated Ally 51 | . . . . 31 21 21 . . . . 51 51 Total Orders . | . . . . . . . . . . . . . Ally Attacks 29 | . . . . 5 . 17 . . . . . 7 Total Damage 490 | . . . . 84 . 261 . . . . . 145 Kills 11 | . . . . 1 . 9 . . . . . 1 Allies Corrupted . | . . . . . . . . . . . . . Allies Melted . | . . . . . . . . . . . . . Intel | -11 -10 -10 -9 -9 -9 -8 -8 -7 -7 -7 -7 -7 ------- Run | Scr Mat Min Mat Min Exi Min Mat Fac Low Low Zio Dee Robot Analysis Total . | . . . . . . . . . . . . . Derelict Logs Recovered 5 | . . 1 . 1 . . . . 1 1 1 . Drone Launches . | . . . . . . . . . . . . . Drone Recoveries . | . . . . . . . . . . . . . Exploration | -11 -10 -10 -9 -9 -9 -8 -8 -7 -7 -7 -7 -7 ------------- Run | Scr Mat Min Mat Min Exi Min Mat Fac Low Low Zio Dee Turns Passed 15343 | 165 1677 1471 2860 1690 1100 1387 3434 393 104 562 358 142 Spaces Moved 8518 | 75 589 561 996 669 445 556 1433 832 382 586 1007 387 Core 5 | 5 . . . . . . . . . . . . Treads 4874 | 70 589 561 996 669 445 556 954 34 . . . . Legs . | . . . . . . . . . . . . . Wheels 479 | . . . . . . . 479 . . . . . Hover . | . . . . . . . . . . . . . Flight 3160 | . . . . . . . . 798 382 586 1007 387 Fastest Speed 26 | 50 160 240 160 240 240 240 110 26 26 26 26 26 Average Speed 150 | 154 226 240 233 240 240 240 193 34 26 26 26 26 Slowest Speed 560 | 160 320 240 240 240 240 240 560 231 26 26 26 35 Overloaded Moves . | . . . . . . . . . . . . . Propulsion Burnouts . | . . . . . . . . . . . . . Robots Hopped . | . . . . . . . . . . . . . Cave-ins Triggered . | . . . . . . . . . . . . . Exploration Rate (%) 73 | 6 90 100 90 99 92 97 95 18 63 72 91 40 Regions Visited 12 Branch Regions 8 Pre-discovered Areas 4 | . . 1 . 1 1 . . . . . 1 . Known Exits Taken 6 | . 1 . 1 . . . . 1 1 1 1 . Unknown Exits Taken 6 | 1 . 1 . 1 1 1 1 . . . . . Scrap Searched 13 | . . 1 . 2 . 1 . . 7 1 1 . Spaces Dug 4 | . . . . . . . . 4 . . . . Terrain Destroyed 44 | . 21 . . . . . 19 4 . . . . Melee 4 | . . . . . . . . 4 . . . . Projectile 4 | . . . . . . . 4 . . . . . AOE 35 | . 21 . . . . . 14 . . . . . Terrain Rammed . | . . . . . . . . . . . . . Walls Destroyed . | . . . . . . . . . . . . . Machines Disabled . | . . . . . . . . . . . . . Actions | -11 -10 -10 -9 -9 -9 -8 -8 -7 -7 -7 -7 -7 --------- Run | Scr Mat Min Mat Min Exi Min Mat Fac Low Low Zio Dee Total 10363 | 102 799 675 1359 715 478 600 1811 937 385 994 1103 405 Wait 1031 | . 74 93 154 15 . 31 131 40 . 409 84 . Move 8506 | 74 588 560 995 668 444 555 1432 831 381 585 1006 387 Hop . | . . . . . . . . . . . . . Pick Up 98 | 7 24 1 28 3 . 2 21 6 1 . 5 . Fast Attach 31 | 8 . . 4 . 1 . 13 3 . . . 2 Attach 33 | . 2 . 6 1 . 1 9 14 . . . . Detach 14 | 1 1 . 2 . 1 . 2 7 . . . . Swap 54 | . 11 3 15 1 . 1 17 5 . . 1 . Drop 127 | . 21 5 33 2 . 3 29 23 1 . 6 4 Fire 409 | 12 78 8 122 25 . 7 157 . . . . . Melee 23 | . . . . . . . . 8 2 . 1 12 Ram . | . . . . . . . . . . . . . Kick . | . . . . . . . . . . . . . Crush . | . . . . . . . . . . . . . Escape Stasis . | . . . . . . . . . . . . . Rewire 32 | . . . . . 32 . . . . . . . Trap 5 | . . 5 . . . . . . . . . . Miscellaneous . | . . . . . . . . . . . . . Route ------- -11/Scrapyard -10/Materials (discovered 4 exits: *Mat x3 / *Min) -10/Mines (discovered 2 exits: *Mat x2) -9/Materials (discovered 4 exits: *Mat x3 / *Min) -9/Mines (discovered 4 exits: *Mat x2 / *Exi / *Zio) -9/Exiles (discovered 2 exits: [*Min x2]) -8/Mines (discovered 2 exits: *Mat x2) -8/Materials (discovered 2 exits: *Fac x2) -7/Factory (discovered 5 exits: Fac x4 / *Low) -7/Lower Caves -7/Lower Caves (discovered 2 exits: *Fac / *Zio) -7/Zion (discovered 2 exits: *Dee / [*Pro]) -7/Deep Caves History --------- Turn | Location | Event 16 | -11/Scrapyard | Discovered new exit (range 16) 166 | -11/Scrapyard | Entered Materials 280 | -10/Materials | Discovered new exit (range 15) 317 | -10/Materials | Build established: Mutant 438 | -10/Materials | Identified exit to Mines 561 | -10/Materials | Discovered new exit (range 16) 1238 | -10/Materials | Discovered new exit (range 13) 1536 | -10/Materials | Discovered new exit (range 8) 1843 | -10/Materials | Entered Mines 1905 | -10/Mines | Core integrity fell below 50% 2219 | -10/Mines | Build established: Scavenger-Mutant 2398 | -10/Mines | Discovered new exit (range 3) 2745 | -10/Mines | Learned location of Mines (-9) 3204 | -10/Mines | Found a hidden stash of uninstalled traps 3271 | -10/Mines | Discovered new exit (range 8) 3314 | -10/Mines | Entered Materials 3314 | -9/Materials | Evolved 2 slots: Propulsion x2 3639 | -9/Materials | Repaired Lgt. Treads 4177 | -9/Materials | Identified exit to Mines 4494 | -9/Materials | Discovered new exit (range 16) 4959 | -9/Materials | Discovered new exit (range 12) 5503 | -9/Materials | Discovered new exit (range 6) 5883 | -9/Materials | Repaired Minigun 5923 | -9/Materials | Repaired Minigun 6114 | -9/Materials | First assault squad dispatched 6174 | -9/Materials | Entered Mines 6283 | -9/Mines | Received a Mining Laser from a helpful Derelict 6332 | -9/Mines | Discovered new exit (range 11) 6470 | -9/Mines | Build established: Mutant 6616 | -9/Mines | A Derelict revealed a hidden shortcut to a safe place 7068 | -9/Mines | Discovered new exit (range 6) 7232 | -9/Mines | A weapon hastily lodged in a ceiling crevice suddenly fell to the ground 7305 | -9/Mines | Deemed a non-threat by the Exiles lab entrance 7305 | -9/Mines | Discovered new exit (range 5) 7864 | -9/Mines | Entered Exiles 7864 | -9/Exiles | Found Exiles lab destroyed 7896 | -9/Exiles | Discovered new exit (range 15) 8830 | -9/Exiles | Learned location of Zion (-7) 8933 | -9/Exiles | Discovered new exit (range 15) 8964 | -9/Exiles | Entered Mines 8964 | -8/Mines | Accompanied by 3 allies 9096 | -8/Mines | Discovered new exit (range 12) 9347 | -8/Mines | Discovered new exit (range 6) 10351 | -8/Mines | Entered Materials 10351 | -8/Materials | Evolved 2 slots: Utility x2 10677 | -8/Materials | Lost 3 parts (2n1u) 10890 | -8/Materials | Build established: Scavenger-Mutant 11307 | -8/Materials | Repaired Hrd. Medium Armor Plating 11352 | -8/Materials | Repaired Gauss Rifle 11812 | -8/Materials | Build established: Mutant 12669 | -8/Materials | Discovered new exit (range 12) 13112 | -8/Materials | Discovered new exit (range 7) 13467 | -8/Materials | Garrison activated, responded to threat 13785 | -8/Materials | Entered Factory 13785 | -7/Factory | Evolved 2 slots: Utility x2 13841 | -7/Factory | Discovered new exit (range 8) 14107 | -7/Factory | Identified exit to Factory 14155 | -7/Factory | Fabricated VTOL Module (x2) 14178 | -7/Factory | Identified exit to Lower Caves 14178 | -7/Factory | Entered Lower Caves 14203 | -7/Lower Caves | Encountered a Warlord checkpoint 14210 | -7/Lower Caves | Identified exit to Lower Caves 14282 | -7/Lower Caves | Entered another Lower Caves area 14298 | -7/Lower Caves | Encountered a Warlord checkpoint 14445 | -7/Lower Caves | Build established: Scavenger-Scout 14540 | -7/Lower Caves | Discovered exit to Factory (range 11) 14770 | -7/Lower Caves | Identified exit to Zion 14844 | -7/Lower Caves | Entered Zion 14855 | -7/Zion | Found CR-A16's Pointy Stick 14863 | -7/Zion | Gained Derelict followers 14869 | -7/Zion | System corruption cleaned by Quarantine Array 14889 | -7/Zion | Discovered new exit (range 12) 14890 | -7/Zion | Acquired unknown access codes intercepted by a Zionite 14912 | -7/Zion | Learned Factory emergency access door positions 14940 | -7/Zion | Learned location of Recycling (-7) 14994 | -7/Zion | Found Prototype Special Weapon 14995 | -7/Zion | Found Prototype Special Weapon 14998 | -7/Zion | Found Prototype Special Weapon 15000 | -7/Zion | Found Prototype Special Weapon 15010 | -7/Zion | Given A8's code to call for help 15033 | -7/Zion | Received a visual enhancement algorithm 15042 | -7/Zion | Given the Hacking Drone Bay 15093 | -7/Zion | Imprinted 15095 | -7/Zion | Declared Zion's savior 15114 | -7/Zion | Opened final containment barrier to the Deep Caves 15118 | -7/Zion | Discovered new exit (range 3) 15118 | -7/Zion | Saw the warning signs outside the Deep Caves entrance 15118 | -7/Zion | Identified exit to Deep Caves 15202 | -7/Zion | Entered Deep Caves 15202 | -7/Deep Caves | Accompanied by 8 allies 15315 | -7/Deep Caves | Attacked by Z-Imprinter 15318 | -7/Deep Caves | Z-Facility disabled 15336 | -7/Deep Caves | Core integrity fell below 50% 15340 | -7/Deep Caves | Core integrity fell below 20% 15344 | -7/Deep Caves | Destroyed by Z1-KR0(z) with Zionite Laser-S Last Messages --------------- 15299_ Sneak attack on 7R-J4F(o). 15299_ 7R-J4F(o) destroyed. 15301_ P0-MVD(o) destroyed. 15302_ Acquired 10 matter. 15302_ Sneak attack on LL-KRX(o). 15302_ LL-KRX(o) destroyed. 15315_ VTOL Module destroyed. Z-Imprinter: GET AWAY FROM HERE! I've worked too hard for our future just to have you ruin everything! 15315_ Dropped Imp. Datajack. 15318_ Z-Facility disabled. 15322_ Lgt. Nuclear Core destroyed. 15322_ Cesium-ion Thruster destroyed. 15322_ Z-Imprinter suffers critical hit (Impale). 15323_ VTOL Module destroyed. 15326_ Dropped Sml. Storage Unit. 15329_ 4S-SP7(z) destroyed. 15331_ Imp. Sensor Array destroyed. 15333_ Structural Scanner destroyed. 15343_ Imp. Cesium-ion Thruster destroyed. Map ----- +----------------------------------------------------+ | | | | | | | | | | | | | | | | | | | | | | | | | | | ?#################???????????????????????????????? | | ##############;####??????????????????????????????? | | ### ###??#####???????????????????????? | | ##########???########???????????? | | ;##### ###?###########??????????? | | ## # ####### ###??????????? | | ##### ##???######## | | ##???######## | | ##???## ### | | / ###???## | | ! ###??### | | """" """""" | %= ######## | | """""""""""" !|@I ! ###### | | """"""""""""" ] z | | """"""""""""" ![ ### | | """""""""" !%! #### | | ???"""""""""" == ########### | | ????""""""""" ############# | | ???""""""""" ######## #### | | ???"""""""""" ###??## ### | | ???""""" " " ###??## | | ???""""""%=% ##??## | | ???""""" * = ##??### | | ???""""""%= ##??### | | ???""""""/ ###???## | | ???"""""""" ! ###???### | | ???"""""""""" / ##???#### | | ???""" *= ##????### | | ???""" """ ###?????## | | ????"" """"" ####?????## | | ????"" """"""" ####??###### | | ????"" """"""" ###??####### | | ????"" """"""" ##??## #### | | ???""" """"" ##??## ### | | ???""" """ ###??## ??# | | ???""" ! ###?### #?? | | ???""""""""""%/ ###?### ###? | +----------------------------------------------------+ Best States ------------- Heat Dissipation 45 Energy Generation 14 Energy Capacity 280 Matter Stores 300 Matter Capacity 300 Sight Range 16 Robot Scan Range 15 Terrain Scan Range 16 Terrain Scan Density 10 Armor Coverage 450 Core Shielding 20 Evasion (%) 64 Targeting Accuracy 6 Recoil Reduction 4 Salvage Targeting 4 Offensive Hacking 20 Item Schematics ----------------- Med. Storage Unit | -9/Materials | Scanalyzed Structural Scanner | -9/Materials | Scanalyzed Sensor Array | -9/Materials | Scanalyzed VTOL Module | -9/Materials | Scanalyzed Hacking Suite | -8/Materials | Scanalyzed Lyr. Light Armor Plating | -7/Zion | Archive Mak. Transmission Jammer | -7/Zion | Archive Magnetic Acceleration Cannon | -7/Zion | Archive Gatling Laser | -7/Zion | Archive Flexi-carbon Leg | -7/Zion | Archive Adv. ECM Suite | -7/Zion | Archive Mni. Drone Bay | -7/Zion | Archive Hvy. Phase Cannon | -7/Zion | Archive Imp. Melee Analysis Suite | -7/Zion | Archive Imp. Medium Treads | -7/Zion | Archive Shock Absorption System | -7/Zion | Archive Focal Shield | -7/Zion | Archive Imp. EM Pulse Cannon | -7/Zion | Archive Plasma Rifle | -7/Zion | Archive Hvy. Battle Rifle | -7/Zion | Archive Robot Schematics ------------------ M-14 Sweeper | -7/Zion | Archive S-27 Virus | -7/Zion | Archive X-62 Marksman | -7/Zion | Archive X-77 Beamer | -7/Zion | Archive Fabricated ------------ VTOL Module | x2 | -7/Factory Alien Tech Used ----------------- None Achievements -------------- None Challenges ------------ None Game ------ Seed PulseHeavyRecalibrator Manual? 0 Play Time 01:29:01 Cumulative 95.4 hours Start 2022.10.21 @ 16:44:45 End 2022.10.21 @ 18:56:34 Sessions 3 Manual Loads 0 Difficulty Rogue Special Mode None Game No. 75 Rogue 75 Adventurer 0 Explorer 0 Win Type - Total 5 Types 4/0/1/0/0/0/0/0/0 Lore% 64 Gallery% 63 Achievement% 55 Wizard Run 0 Options --------- ASCII 0 Keyboard 1 Movement Vi Keybinds 0 Fullscreen 2 Font 24/Proggy Map View 76x50 Tactical HUD 1 Map Filters NONE Filters NONE Steam 1 RUN: 47791b3a-b49c-4f38-9482-f515103bfddb